[Event "USA Girls Junior-ch TB 2022"]
[Site "Saint Louis"]
[Date "2022.07.19"]
[Round "6.1"]
[White "Cervantes Landeiro, Thalia"]
[Black "Morris-Suzuki, Sophie"]
[Result "1-0"]
[ECO "D37"]
[WhiteElo "2234"]
[BlackElo "2055"]
[Annotator "TA"]
[PlyCount "121"]
[EventDate "2022.07.07"]
[EventType "tourn"]
[EventCountry "USA"]
[SourceTitle "playchess.com"]
[Source "ChessBase"]
[SourceQuality "1"]
[TimeControl "180+2"]

{[%evp 13,121,10,22,16,30,15,32,31,66,85,84,22,31,23,18,-18,-14,-4,12,0,16,35,24,10,24,38,31,22,52,0,22,-104,-118,-113,-108,-109,-52,-85,-7,-9,-15,-12,88,-52,-45,-281,-269,-1133,-20,-27,-25,-38,-8,-11,66,-12,0,0,35,0,0,0,43,49,108,97,109,112,133,114,262,137,137,95,144,137,247,88,203,81,80,23,123,75,77,82,72,60,73,67,747,710,5517,5573,29974,29975,29975,29976,29975,29974,29983,29983,29984,29985,29986,29987,29988,29989,29989,29988]} 1. d4 {[%emt 0:00:04]} d5 {[%emt 0:00:04]} 2. c4 {[%emt 0:00:02]} e6 {[%emt 0:00:02]} 3. Nc3 {[%emt 0:00:02]} Nf6 {[%emt 0:00:02]} 4. Nf3 {[%emt 0:00:02]} Be7 {[%emt 0:00:02]} 5. Bf4 {[%emt 0:00:02]} O-O {[%emt 0:00:02]} 6. e3 {[%emt 0:00:02]} b6 {[%emt 0:00:02]} 7. Rc1 {[%emt 0:00:02]} Bb7 {[%emt 0:00:05]} 8. cxd5 {[%emt 0:00:03] D37: Queen's Gambit Declined: 5 Bf4.} exd5 {[%emt 0:00:04]} 9. Be2 {[%emt 0:00:07]} a6 {[%emt 0:00:02] Inhibits Nb5.} 10. O-O {[%emt 0:00:03] White is slightly better.} c5 {[%emt 0:00:02]} 11. Ne5 {[%emt 0:00:08] [#]} Nc6 $146 {[%emt 0:00:04]} ({Predecessor:} 11... Nbd7 12. Nxd7 Qxd7 13. Na4 Qc6 14. dxc5 bxc5 15. Nxc5 Bxc5 16. b4 Rac8 17. bxc5 Ne4 18. Qd4 Nxc5 19. Bg4 f5 20. Bh5 g6 21. Bf3 Ne6 22. Rxc6 Nxd4 23. Bxd5+ {1-0 (23) Krutous,A (2271)-Snezhko,A ICCF email 2019}) 12. Nxc6 {[%emt 0:00:10] White is more active.} ({White should play} 12. dxc5 $16 bxc5 13. Bf3) 12... Bxc6 $11 {[%emt 0:00:02]} 13. dxc5 {[%emt 0:00:02]} bxc5 {[%emt 0:00:03]} 14. Na4 {[%emt 0:00:04]} Qa5 {[%emt 0:00:11]} 15. Nc3 {[%emt 0:00:43]} Rad8 {[%emt 0:00:02]} 16. Bf3 {[%emt 0:00:12]} Ba8 {[%emt 0:00:13]} 17. Qa4 {[%emt 0:00:03]} Qb6 {[%emt 0:00:06]} 18. Qa3 {[%emt 0:00:05]} Rc8 {[%emt 0:00:50]} 19. Rfd1 {[%emt 0:00:24][%cal Rf3d5]} Rfd8 {[%emt 0:00:02]} 20. h3 {[%emt 0:00:07]} h6 {[%emt 0:00:02]} 21. b3 {[%emt 0:00:11]} (21. Be5 $14) 21... Qa7 {[%emt 0:00:04]} (21... Qe6 $5 {[%cal Rg7g5]}) 22. Qb2 {[%emt 0:00:08]} (22. Na4 $11) 22... d4 $17 {[%emt 0:00:07]} 23. exd4 {[%emt 0:00:08]} Bxf3 {[%emt 0:00:03]} 24. gxf3 {[%emt 0:00:02]} cxd4 {[%emt 0:00:03]} (24... Nh5 $1 $17 {[%cal Rh5f4]} 25. Bh2 (25. Ne2 $2 Nxf4 26. Nxf4 Bg5 $19) 25... Bg5) 25. Ne4 {[%emt 0:00:07]} Nd5 {[%emt 0:00:14]} (25... Rxc1 $1 $17 26. Qxc1 Nxe4 27. fxe4 Qb6) 26. Rxc8 {[%emt 0:00:09]} Rxc8 {[%emt 0:00:02]} 27. Be5 {[%emt 0:00:04]} f5 {[%emt 0:00:39]} (27... Nb4 $11) 28. Bxd4 {[%emt 0:00:13]} ({Weaker is} 28. Rxd4 Nb4 29. Nc3 Qb7 $15) (28. Ng3 $1 $16) 28... Qb7 $15 {[%emt 0:00:02]} 29. Ng3 {[%emt 0:00:04]} (29. Bxg7 $15 fxe4 30. Qe5) 29... Nf4 $1 $19 {[%emt 0:00:05][%csl LRf3,LRh3]} 30. Ne2 $2 {[%emt 0:00:12]} (30. Nxf5 {is a self mate.} Qxf3 $1 31. Ne3 Nxh3+ 32. Kh2 Nxf2 33. Nc4 Ng4+ 34. Kg1 Qxd1+ 35. Kg2 Rf8) (30. b4 Qxf3 31. Qb3+ Qxb3 32. axb3) 30... Nxh3+ $2 {[%emt 0:00:11]} (30... Qxf3 $19 {[%csl Gf4][%cal Rf3g2]} 31. Nxf4 Qxd1+ 32. Kg2 Rc2) 31. Kg2 $11 {[%emt 0:00:08]} Ng5 {[%emt 0:00:02]} 32. Ng1 {[%emt 0:00:03]} Rd8 {[%emt 0:00:08]} 33. Qe2 {[%emt 0:00:02] Inhibits Ne6.} Qd7 {[%emt 0:00:10]} (33... Kf7 $11) 34. Rd2 {[%emt 0:00:02]} (34. Qxa6 $14 Qe6 35. Qe2) 34... Ne6 {[%emt 0:00:02] Strongly threatening ...Nf4+.} 35. Be3 {[%emt 0:00:02] Against Nf4+} Qc8 {[%emt 0:00:07]} 36. Rxd8+ {[%emt 0:00:02]} (36. Rc2 {is more complex.} Qb7 37. Bxh6 Kf7 38. Bc1) 36... Bxd8 {[%emt 0:00:02]} 37. Qd3 {[%emt 0:00:02]} f4 {[%emt 0:00:06]} 38. Bd2 {[%emt 0:00:02]} Ng5 {[%emt 0:00:07]} ({Better is} 38... Qc6 $14) 39. Qd5+ {[%emt 0:00:02]} Kh8 {[%emt 0:00:02]} 40. Bxf4 {[%emt 0:00:05]} Ne6 {[%emt 0:00:02]} 41. Be5 {[%emt 0:00:02]} Bc7 {[%emt 0:00:02] [#]} (41... Bf6 $16 {is a better defense.}) 42. Bxc7 {[%emt 0:00:03]} ({White has to play} 42. Qc6 $1 $18) 42... Nxc7 $18 {[%emt 0:00:02][%mdl 4096] Endgame KQN-KQN} 43. Qc4 {[%emt 0:00:02]} Qd7 {[%emt 0:00:02]} (43... Qb7 $142) 44. Ne2 $16 {[%emt 0:00:02]} Ne6 {[%emt 0:00:02]} (44... Qd6 $16 {might work better.} 45. Nf4 a5) 45. Qe4 $2 {[%emt 0:00:02]} (45. Qxa6 $18 {And now Qc4 would win.} Qd5 46. Qc8+ Kh7 47. Qc2+ Kg8 48. a4) 45... Qe7 {[%emt 0:00:02] [#]} (45... Ng5 $16 46. Qg4 Qf7) 46. Ng3 {[%emt 0:00:03]} (46. Qa8+ $1 $18 {and White stays clearly on top.} Kh7 47. Qxa6) 46... Qf6 {[%emt 0:00:02]} 47. Qf5 {[%emt 0:00:02]} (47. b4 $16) 47... Qe7 {[%emt 0:00:02]} (47... Nf4+ $11 {keeps the balance.} 48. Kh2 Qxf5 49. Nxf5 Kg8) 48. Qe5 {[%emt 0:00:02]} ({White should try} 48. b4) 48... Qf7 {[%emt 0:00:02]} 49. Qb8+ {[%emt 0:00:02]} Kh7 {[%emt 0:00:02]} 50. Qd6 {[%emt 0:00:02]} Nf4+ {[%emt 0:00:02]} 51. Kh2 {[%emt 0:00:02]} Qe8 $2 {[%emt 0:00:02][%mdl 8192]} 52. Qxf4 $18 {[%emt 0:00:03] Intending Qe4+ and mate.} Qg6 {[%emt 0:00:02]} 53. Qe4 {[%emt 0:00:02] Threatening mate with Kh3.} Qxe4 {[%emt 0:00:03]} 54. fxe4 {[%emt 0:00:02] KN-K3P. White mates.} g5 {[%emt 0:00:02]} 55. e5 {[%emt 0:00:02]} Kg6 {[%emt 0:00:02]} 56. Kg2 {[%emt 0:00:02]} Kf7 {[%emt 0:00:02]} 57. Kf3 {[%emt 0:00:02]} Ke6 {[%emt 0:00:02]} 58. Ke4 {[%emt 0:00:02]} g4 {[%emt 0:00:02]} 59. Nh5 {[%emt 0:00:02]} a5 {[%emt 0:00:02]} 60. a4 {[%emt 0:00:02]} Ke7 {[%emt 0:00:02]} 61. Kf5 {[%emt 0:00:06] Both players deserved the win here.  Weighted Error Value: White=0.48/Black=0.51} 1-0